[Event "Titled Tuesday Blitz April 25 Early 2023"]
[White "Mouhamad, Joachim"]
[Black "Averjanov, Alexey"]
[WhiteFideId "656410"]
[BlackFideId "14109867"]
[WhiteElo "2125"]
[BlackElo "2699"]
[Result "0-1"]
[Round "02"]
[TimeControl "180+2"]
[Date "2023.04.25"]
[WhiteClock "0:00:03"]
[BlackClock "0:00:04"]

1. e4 {[%clk 0:02:51]}  c6 {[%clk 0:02:59]} 2. d4 {[%clk 0:02:51]}  d5 {[%clk 0:03:00]} 3. Nc3 {[%clk 0:02:52]}  dxe4 {[%clk 0:02:57]} 4. Nxe4 {[%clk 0:02:53]}  Bf5 {[%clk 0:02:56]} 5. Ng3 {[%clk 0:02:53]}  Bg6 {[%clk 0:02:55]} 6. h4 {[%clk 0:02:54]}  h6 {[%clk 0:02:53]} 7. Nf3 {[%clk 0:02:54]}  Nd7 {[%clk 0:02:52]} 8. h5 {[%clk 0:02:55]}  Bh7 {[%clk 0:02:51]} 9. Bd3 {[%clk 0:02:54]}  Bxd3 {[%clk 0:02:50]} 10. Qxd3 {[%clk 0:02:55]}  e6 {[%clk 0:02:51]} 11. Bd2 {[%clk 0:02:54]}  Ngf6 {[%clk 0:02:49]} 12. O-O-O {[%clk 0:02:53]}  Be7 {[%clk 0:02:49]} 13. Kb1 {[%clk 0:02:54]}  O-O {[%clk 0:02:46]} 14. Ne4 {[%clk 0:02:53]}  Nxe4 {[%clk 0:02:46]} 15. Qxe4 {[%clk 0:02:54]}  Nf6 {[%clk 0:02:46]} 16. Qe2 {[%clk 0:02:54]}  Qd5 {[%clk 0:02:47]} 17. Be3 {[%clk 0:02:54]}  Ng4 {[%clk 0:02:46]} 18. Bc1 {[%clk 0:02:51]}  Rad8 {[%clk 0:02:37]} 19. Ne5 {[%clk 0:02:42]}  Nxe5 {[%clk 0:02:35]} 20. dxe5 {[%clk 0:02:40]}  Qa5 {[%clk 0:02:32]} 21. g4 {[%clk 0:02:24]}  Rxd1 {[%clk 0:02:29]} 22. Rxd1 {[%clk 0:02:25]}  Rd8 {[%clk 0:02:29]} 23. Rg1 {[%clk 0:02:23]}  Qd5 {[%clk 0:02:22]} 24. f4 {[%clk 0:02:20]}  Qd4 {[%clk 0:02:11]} 25. Qh2 {[%clk 0:02:09]}  Bc5 {[%clk 0:01:54]} 26. Rf1 {[%clk 0:01:58]}  Qc4 {[%clk 0:01:53]} 27. Rh1 {[%clk 0:01:45]}  Qe4 {[%clk 0:01:44]} 28. g5 {[%clk 0:01:41]}  hxg5 {[%clk 0:01:41]} 29. fxg5 {[%clk 0:01:39]}  Qf3 {[%clk 0:01:31]} 30. g6 {[%clk 0:01:30]}  Rd1 {[%clk 0:01:29]} 31. Rxd1 {[%clk 0:01:14]}  Qxd1 {[%clk 0:01:26]} 32. Qf4 {[%clk 0:01:15]}  Qd7 {[%clk 0:01:20]} 33. a3 {[%clk 0:01:08]}  Qe8 {[%clk 0:01:10]} 34. Qg4 {[%clk 0:01:02]}  a6 {[%clk 0:01:04]} 35. b3 {[%clk 0:00:50]}  Bf8 {[%clk 0:01:00]} 36. a4 {[%clk 0:00:44]}  b5 {[%clk 0:00:59]} 37. axb5 {[%clk 0:00:36]}  axb5 {[%clk 0:01:00]} 38. Be3 {[%clk 0:00:34]}  Be7 {[%clk 0:00:59]} 39. Qf3 {[%clk 0:00:31]}  Bf8 {[%clk 0:00:56]} 40. Qe4 {[%clk 0:00:30]}  Qd7 {[%clk 0:00:52]} 41. Qf3 {[%clk 0:00:28]}  Bb4 {[%clk 0:00:46]} 42. Bc1 {[%clk 0:00:26]}  Bf8 {[%clk 0:00:30]} 43. gxf7+ {[%clk 0:00:25]}  Qxf7 {[%clk 0:00:29]} 44. Qxc6 {[%clk 0:00:26]}  b4 {[%clk 0:00:21]} 45. Bd2 {[%clk 0:00:24]}  Qf1+ {[%clk 0:00:17]} 46. Kb2 {[%clk 0:00:22]}  Qf5 {[%clk 0:00:18]} 47. Qb5 {[%clk 0:00:14]}  Qxh5 {[%clk 0:00:16]} 48. Qb8 {[%clk 0:00:08]}  Kf7 {[%clk 0:00:11]} 49. Qc7+ {[%clk 0:00:07]}  Kg8 {[%clk 0:00:12]} 50. Qb8 {[%clk 0:00:07]}  Kf7 {[%clk 0:00:09]} 51. Qb7+ {[%clk 0:00:06]}  Kg6 {[%clk 0:00:06]} 52. Qb8 {[%clk 0:00:06]}  Qf5 {[%clk 0:00:05]} 53. Qe8+ {[%clk 0:00:05]}  Kh7 {[%clk 0:00:04]} 54. Qb5 {[%clk 0:00:03]}  g5 {[%clk 0:00:04]} 0-1


[Site "https://www.chess.com"]

[Event "Titled Tuesday Blitz April 25 Early 2023"]
[White "Tymrakiewicz, Rafal"]
[Black "Rendle, Thomas E"]
[WhiteFideId "1108832"]
[BlackFideId "408760"]
[WhiteElo "2151"]
[BlackElo "2428"]
[Result "1/2-1/2"]
[Round "02"]
[TimeControl "180+2"]
[Date "2023.04.25"]
[WhiteClock "0:00:02"]
[BlackClock "0:00:03"]

1. e4 {[%clk 0:02:53]}  e6 {[%clk 0:02:56]} 2. d4 {[%clk 0:02:53]}  d5 {[%clk 0:02:57]} 3. e5 {[%clk 0:02:53]}  Ne7 {[%clk 0:02:55]} 4. Bd3 {[%clk 0:02:52]}  b6 {[%clk 0:02:52]} 5. Qe2 {[%clk 0:02:52]}  a5 {[%clk 0:02:49]} 6. f4 {[%clk 0:02:51]}  Ba6 {[%clk 0:02:47]} 7. Bxa6 {[%clk 0:02:49]}  Nxa6 {[%clk 0:02:48]} 8. Nf3 {[%clk 0:02:48]}  c5 {[%clk 0:02:31]} 9. O-O {[%clk 0:02:40]}  Nc6 {[%clk 0:02:14]} 10. Be3 {[%clk 0:02:35]}  cxd4 {[%clk 0:02:11]} 11. Nxd4 {[%clk 0:02:35]}  Nxd4 {[%clk 0:02:10]} 12. Bxd4 {[%clk 0:02:35]}  Bc5 {[%clk 0:02:02]} 13. c3 {[%clk 0:02:25]}  f5 {[%clk 0:01:53]} 14. exf6 {[%clk 0:02:17]}  Qxf6 {[%clk 0:01:50]} 15. Qb5+ {[%clk 0:02:08]}  Kf7 {[%clk 0:01:44]} 16. f5 {[%clk 0:01:54]}  exf5 {[%clk 0:01:07]} 17. Qd7+ {[%clk 0:01:46]}  Kg6 {[%clk 0:01:05]} 18. Nd2 {[%clk 0:00:52]}  Rad8 {[%clk 0:00:49]} 19. Qb7 {[%clk 0:00:51]}  Bxd4+ {[%clk 0:00:47]} 20. cxd4 {[%clk 0:00:51]}  Qxd4+ {[%clk 0:00:48]} 21. Rf2 {[%clk 0:00:51]}  Nb4 {[%clk 0:00:41]} 22. Nf3 {[%clk 0:00:51]}  Qf6 {[%clk 0:00:39]} 23. Raf1 {[%clk 0:00:32]}  Nd3 {[%clk 0:00:36]} 24. Nh4+ {[%clk 0:00:32]}  Qxh4 {[%clk 0:00:35]} 25. Rxf5 {[%clk 0:00:32]}  Rhf8 {[%clk 0:00:25]} 26. Qxb6+ {[%clk 0:00:27]}  Rf6 {[%clk 0:00:20]} 27. Rxf6+ {[%clk 0:00:26]}  gxf6 {[%clk 0:00:21]} 28. g3 {[%clk 0:00:22]}  Qe4 {[%clk 0:00:09]} 29. Qxf6+ {[%clk 0:00:14]}  Kh5 {[%clk 0:00:06]} 30. Qf7+ {[%clk 0:00:07]}  Kg4 {[%clk 0:00:03]} 31. Qg7+ {[%clk 0:00:03]}  Qg6 {[%clk 0:00:03]} 32. Qd4+ {[%clk 0:00:03]}  Qe4 {[%clk 0:00:01]} 33. Qg7+ {[%clk 0:00:03]}  Qg6 {[%clk 0:00:02]} 34. Qd4+ {[%clk 0:00:02]}  Qe4 {[%clk 0:00:03]} 35. Qg7+ {[%clk 0:00:02]} 1/2-1/2


[Site "https://www.chess.com"]

[Event "Titled Tuesday Blitz April 25 Early 2023"]
[White "Prohaszka, Peter"]
[Black "Travadon, Loic"]
[WhiteFideId "726265"]
[BlackFideId "26092131"]
[WhiteElo "2626"]
[BlackElo "2405"]
[Result "1-0"]
[Round "02"]
[TimeControl "180+2"]
[Date "2023.04.25"]
[WhiteClock "0:00:19"]
[BlackClock "0:01:38"]

1. d4 {[%clk 0:03:00]}  Nf6 {[%clk 0:02:58]} 2. Bf4 {[%clk 0:03:00]}  d5 {[%clk 0:02:57]} 3. e3 {[%clk 0:02:58]}  e6 {[%clk 0:02:57]} 4. Nd2 {[%clk 0:02:58]}  Bd6 {[%clk 0:02:58]} 5. Ngf3 {[%clk 0:02:56]}  O-O {[%clk 0:02:56]} 6. Ne5 {[%clk 0:02:50]}  c5 {[%clk 0:02:56]} 7. c3 {[%clk 0:02:50]}  Nc6 {[%clk 0:02:56]} 8. Bd3 {[%clk 0:02:36]}  Qc7 {[%clk 0:02:54]} 9. Ndf3 {[%clk 0:02:31]}  Ne4 {[%clk 0:02:50]} 10. Nxc6 {[%clk 0:02:25]}  bxc6 {[%clk 0:02:50]} 11. Bxd6 {[%clk 0:02:13]}  Qxd6 {[%clk 0:02:51]} 12. Bxe4 {[%clk 0:02:10]}  dxe4 {[%clk 0:02:51]} 13. Nd2 {[%clk 0:02:06]}  cxd4 {[%clk 0:02:44]} 14. Nxe4 {[%clk 0:01:54]}  Qd5 {[%clk 0:02:44]} 15. Qxd4 {[%clk 0:01:54]}  e5 {[%clk 0:02:26]} 16. Qxd5 {[%clk 0:01:35]}  cxd5 {[%clk 0:02:27]} 17. Nc5 {[%clk 0:01:33]}  Rb8 {[%clk 0:02:26]} 18. b4 {[%clk 0:01:30]}  Be6 {[%clk 0:02:26]} 19. O-O-O {[%clk 0:01:04]}  Rfc8 {[%clk 0:02:24]} 20. f4 {[%clk 0:01:00]}  exf4 {[%clk 0:02:14]} 21. exf4 {[%clk 0:01:00]}  a5 {[%clk 0:02:08]} 22. a3 {[%clk 0:01:00]}  g6 {[%clk 0:02:00]} 23. Rhe1 {[%clk 0:00:58]}  Rc6 {[%clk 0:01:55]} 24. Re3 {[%clk 0:00:54]}  Kf8 {[%clk 0:01:55]} 25. Nb3 {[%clk 0:00:42]}  axb4 {[%clk 0:01:52]} 26. axb4 {[%clk 0:00:42]}  Rc4 {[%clk 0:01:50]} 27. Rd4 {[%clk 0:00:33]}  Rbc8 {[%clk 0:01:48]} 28. Rxc4 {[%clk 0:00:32]}  Rxc4 {[%clk 0:01:49]} 29. g3 {[%clk 0:00:27]}  Ke7 {[%clk 0:01:49]} 30. Nd4 {[%clk 0:00:25]}  Kd6 {[%clk 0:01:50]} 31. Kb2 {[%clk 0:00:22]}  h5 {[%clk 0:01:48]} 32. Re1 {[%clk 0:00:20]}  Rc7 {[%clk 0:01:39]} 33. h4 {[%clk 0:00:19]}  Ra7 {[%clk 0:01:38]} 34. Nb5+ {[%clk 0:00:19]} 1-0


[Site "https://www.chess.com"]

[Event "Titled Tuesday Blitz April 25 Early 2023"]
[White "Mika, Tomasz"]
[Black "Seo, Jung Min"]
[WhiteFideId "1132970"]
[BlackFideId "1734687"]
[WhiteElo "2179"]
[BlackElo "2468"]
[Result "0-1"]
[Round "02"]
[TimeControl "180+2"]
[Date "2023.04.25"]
[WhiteClock "0:00:02"]
[BlackClock "0:00:13"]

1. Nf3 {[%clk 0:03:00]}  Nc6 {[%clk 0:02:58]} 2. c4 {[%clk 0:03:01]}  e5 {[%clk 0:02:58]} 3. d3 {[%clk 0:02:57]}  f5 {[%clk 0:02:56]} 4. g3 {[%clk 0:02:55]}  Nf6 {[%clk 0:02:55]} 5. Bg2 {[%clk 0:02:56]}  Bb4+ {[%clk 0:02:54]} 6. Bd2 {[%clk 0:02:55]}  Bxd2+ {[%clk 0:02:54]} 7. Qxd2 {[%clk 0:02:51]}  O-O {[%clk 0:02:53]} 8. Nc3 {[%clk 0:02:51]}  d6 {[%clk 0:02:49]} 9. O-O {[%clk 0:02:50]}  h6 {[%clk 0:02:47]} 10. Nd5 {[%clk 0:02:50]}  Nxd5 {[%clk 0:02:46]} 11. cxd5 {[%clk 0:02:50]}  Ne7 {[%clk 0:02:47]} 12. e4 {[%clk 0:02:50]}  Ng6 {[%clk 0:02:44]} 13. Rac1 {[%clk 0:02:47]}  Rf7 {[%clk 0:02:42]} 14. Rc3 {[%clk 0:02:40]}  Kh7 {[%clk 0:02:37]} 15. Rfc1 {[%clk 0:02:39]}  f4 {[%clk 0:02:30]} 16. d4 {[%clk 0:02:09]}  Bg4 {[%clk 0:02:27]} 17. dxe5 {[%clk 0:01:59]}  dxe5 {[%clk 0:02:21]} 18. Ne1 {[%clk 0:01:54]}  c6 {[%clk 0:02:17]} 19. Rd3 {[%clk 0:01:16]}  cxd5 {[%clk 0:02:14]} 20. Rxd5 {[%clk 0:01:15]}  Qf6 {[%clk 0:02:14]} 21. Nd3 {[%clk 0:01:07]}  Raf8 {[%clk 0:02:11]} 22. Rdc5 {[%clk 0:00:44]}  Rd8 {[%clk 0:02:05]} 23. Rd5 {[%clk 0:00:39]}  Rxd5 {[%clk 0:01:57]} 24. exd5 {[%clk 0:00:39]}  Bf5 {[%clk 0:01:57]} 25. Nc5 {[%clk 0:00:36]}  h5 {[%clk 0:01:46]} 26. Ne4 {[%clk 0:00:36]}  Qd8 {[%clk 0:01:45]} 27. h4 {[%clk 0:00:33]}  Nxh4 {[%clk 0:01:44]} 28. gxh4 {[%clk 0:00:30]}  Qxh4 {[%clk 0:01:44]} 29. d6 {[%clk 0:00:23]}  Kg6 {[%clk 0:01:31]} 30. Qe2 {[%clk 0:00:17]}  Be6 {[%clk 0:01:26]} 31. f3 {[%clk 0:00:13]}  Qd8 {[%clk 0:01:24]} 32. Qb5 {[%clk 0:00:09]}  Qb6+ {[%clk 0:00:54]} 33. Qxb6 {[%clk 0:00:09]}  axb6 {[%clk 0:00:54]} 34. Rc7 {[%clk 0:00:09]}  Rd7 {[%clk 0:00:48]} 35. a3 {[%clk 0:00:08]}  Bf5 {[%clk 0:00:48]} 36. Bf1 {[%clk 0:00:06]}  Kh6 {[%clk 0:00:46]} 37. Bb5 {[%clk 0:00:06]}  Rd8 {[%clk 0:00:47]} 38. Kf2 {[%clk 0:00:06]}  Bxe4 {[%clk 0:00:46]} 39. fxe4 {[%clk 0:00:06]}  Rxd6 {[%clk 0:00:47]} 40. Ke2 {[%clk 0:00:06]}  g5 {[%clk 0:00:47]} 41. Bc4 {[%clk 0:00:05]}  g4 {[%clk 0:00:47]} 42. Re7 {[%clk 0:00:05]}  Rd4 {[%clk 0:00:45]} 43. Re6+ {[%clk 0:00:04]}  Kg5 {[%clk 0:00:43]} 44. Rxe5+ {[%clk 0:00:04]}  Kh4 {[%clk 0:00:44]} 45. Bf7 {[%clk 0:00:05]}  Kg3 {[%clk 0:00:42]} 46. Bxh5 {[%clk 0:00:04]}  f3+ {[%clk 0:00:42]} 47. Ke3 {[%clk 0:00:04]}  Rd1 {[%clk 0:00:41]} 48. Rg5 {[%clk 0:00:04]}  Re1+ {[%clk 0:00:39]} 49. Kd2 {[%clk 0:00:04]}  f2 {[%clk 0:00:39]} 50. Rxg4+ {[%clk 0:00:04]}  Kh3 {[%clk 0:00:38]} 51. Rf4 {[%clk 0:00:02]}  f1=Q {[%clk 0:00:38]} 52. Rxf1 {[%clk 0:00:02]}  Rxf1 {[%clk 0:00:38]} 53. Bg6 {[%clk 0:00:01]}  Kg4 {[%clk 0:00:37]} 54. Bf5+ {[%clk 0:00:01]}  Kf4 {[%clk 0:00:36]} 55. Kc3 {[%clk 0:00:02]}  Rf2 {[%clk 0:00:35]} 56. b3 {[%clk 0:00:02]}  Ke5 {[%clk 0:00:35]} 57. a4 {[%clk 0:00:03]}  Rf1 {[%clk 0:00:32]} 58. Kc4 {[%clk 0:00:03]}  Kd6 {[%clk 0:00:31]} 59. Kc3 {[%clk 0:00:03]}  Kc5 {[%clk 0:00:29]} 60. b4+ {[%clk 0:00:03]}  Kd6 {[%clk 0:00:29]} 61. Kc4 {[%clk 0:00:03]}  Ra1 {[%clk 0:00:24]} 62. Kb5 {[%clk 0:00:03]}  Kc7 {[%clk 0:00:25]} 63. e5 {[%clk 0:00:04]}  Re1 {[%clk 0:00:24]} 64. Bh3 {[%clk 0:00:02]}  Rxe5+ {[%clk 0:00:24]} 65. Kc4 {[%clk 0:00:02]}  Rh5 {[%clk 0:00:22]} 66. Bg2 {[%clk 0:00:02]}  Rh4+ {[%clk 0:00:19]} 67. Kb5 {[%clk 0:00:02]}  Rg4 {[%clk 0:00:19]} 68. Bf3 {[%clk 0:00:02]}  Rf4 {[%clk 0:00:19]} 69. Bg2 {[%clk 0:00:03]}  Rf2 {[%clk 0:00:19]} 70. Bh1 {[%clk 0:00:03]}  Rb2 {[%clk 0:00:19]} 71. Bf3 {[%clk 0:00:03]}  Rh2 {[%clk 0:00:18]} 72. Be4 {[%clk 0:00:02]}  Rh5+ {[%clk 0:00:17]} 73. Kc4 {[%clk 0:00:03]}  Rh4 {[%clk 0:00:17]} 74. Kd5 {[%clk 0:00:03]}  b5 {[%clk 0:00:15]} 75. a5 {[%clk 0:00:02]}  b6 {[%clk 0:00:13]} 76. a6 {[%clk 0:00:02]}  Kb8 {[%clk 0:00:13]} 77. Kd4 {[%clk 0:00:01]}  Ka7 {[%clk 0:00:13]} 78. Kc3 {[%clk 0:00:02]}  Kxa6 {[%clk 0:00:13]} 79. Bd3 {[%clk 0:00:03]}  Rh5 {[%clk 0:00:13]} 80. Be2 {[%clk 0:00:03]}  Rg5 {[%clk 0:00:13]} 81. Bd3 {[%clk 0:00:03]}  Kb7 {[%clk 0:00:13]} 82. Be2 {[%clk 0:00:02]}  Kc7 {[%clk 0:00:13]} 0-1


[Site "https://www.chess.com"]

[Event "Titled Tuesday Blitz April 25 Early 2023"]
[White "Golubev, Mikhail"]
[Black "Kvaloy, Aksel Bu"]
[WhiteFideId "14100983"]
[BlackFideId "1528815"]
[WhiteElo "2374"]
[BlackElo "2208"]
[Result "1-0"]
[Round "02"]
[TimeControl "180+2"]
[Date "2023.04.25"]
[WhiteClock "0:00:13"]
[BlackClock "0:00:38"]

1. e4 {[%clk 0:03:00]}  e5 {[%clk 0:02:57]} 2. Nf3 {[%clk 0:03:00]}  Nf6 {[%clk 0:02:56]} 3. Nc3 {[%clk 0:02:59]}  Nc6 {[%clk 0:02:56]} 4. d4 {[%clk 0:02:59]}  exd4 {[%clk 0:02:56]} 5. Nxd4 {[%clk 0:02:59]}  Bb4 {[%clk 0:02:57]} 6. Nxc6 {[%clk 0:02:59]}  bxc6 {[%clk 0:02:57]} 7. Bd3 {[%clk 0:03:00]}  d5 {[%clk 0:02:55]} 8. Bd2 {[%clk 0:03:00]}  O-O {[%clk 0:02:54]} 9. O-O {[%clk 0:02:55]}  Rb8 {[%clk 0:02:53]} 10. exd5 {[%clk 0:02:29]}  cxd5 {[%clk 0:02:52]} 11. Re1 {[%clk 0:02:29]}  Bg4 {[%clk 0:02:44]} 12. Qc1 {[%clk 0:02:22]}  Bd6 {[%clk 0:02:44]} 13. Nb5 {[%clk 0:02:03]}  Bc5 {[%clk 0:02:23]} 14. b4 {[%clk 0:01:41]}  Bb6 {[%clk 0:02:19]} 15. c3 {[%clk 0:01:08]}  Ne4 {[%clk 0:01:49]} 16. Bxe4 {[%clk 0:01:08]}  dxe4 {[%clk 0:01:50]} 17. Nd4 {[%clk 0:01:08]}  Bxd4 {[%clk 0:01:48]} 18. cxd4 {[%clk 0:01:09]}  Qxd4 {[%clk 0:01:48]} 19. Be3 {[%clk 0:01:09]}  Qxb4 {[%clk 0:01:47]} 20. Bc5 {[%clk 0:01:07]}  Qb2 {[%clk 0:01:44]} 21. Qxb2 {[%clk 0:00:56]}  Rxb2 {[%clk 0:01:45]} 22. Bxf8 {[%clk 0:00:56]}  Kxf8 {[%clk 0:01:46]} 23. Rxe4 {[%clk 0:00:55]}  Be6 {[%clk 0:01:44]} 24. Ra4 {[%clk 0:00:54]}  c5 {[%clk 0:01:31]} 25. Rxa7 {[%clk 0:00:53]}  c4 {[%clk 0:01:31]} 26. Rc7 {[%clk 0:00:53]}  Ke8 {[%clk 0:01:25]} 27. a4 {[%clk 0:00:53]}  Kd8 {[%clk 0:01:25]} 28. Rc5 {[%clk 0:00:53]}  Kd7 {[%clk 0:01:25]} 29. Rd1+ {[%clk 0:00:52]}  Ke7 {[%clk 0:01:25]} 30. a5 {[%clk 0:00:50]}  Ra2 {[%clk 0:01:25]} 31. f4 {[%clk 0:00:38]}  g6 {[%clk 0:01:18]} 32. h3 {[%clk 0:00:34]}  h5 {[%clk 0:01:18]} 33. Kh2 {[%clk 0:00:24]}  h4 {[%clk 0:01:16]} 34. Rb1 {[%clk 0:00:20]}  Kd6 {[%clk 0:01:13]} 35. Re5 {[%clk 0:00:18]}  Bd5 {[%clk 0:00:43]} 36. Rg5 {[%clk 0:00:17]}  f6 {[%clk 0:00:36]} 37. Rxg6 {[%clk 0:00:16]}  Be4 {[%clk 0:00:36]} 38. Rd1+ {[%clk 0:00:15]}  Ke6 {[%clk 0:00:36]} 39. Rg8 {[%clk 0:00:15]}  Rxa5 {[%clk 0:00:35]} 40. Rc8 {[%clk 0:00:13]}  Ra2 {[%clk 0:00:32]} 41. Rg1 {[%clk 0:00:13]}  Rc2 {[%clk 0:00:32]} 42. Rh8 {[%clk 0:00:10]}  c3 {[%clk 0:00:32]} 43. Rxh4 {[%clk 0:00:10]}  Rd2 {[%clk 0:00:32]} 44. Rh8 {[%clk 0:00:09]}  c2 {[%clk 0:00:31]} 45. Rc8 {[%clk 0:00:09]}  Kd5 {[%clk 0:00:27]} 46. Rd8+ {[%clk 0:00:08]}  Kc4 {[%clk 0:00:23]} 47. Rxd2 {[%clk 0:00:09]}  Kc3 {[%clk 0:00:24]} 48. Rf2 {[%clk 0:00:09]}  Bd3 {[%clk 0:00:25]} 49. h4 {[%clk 0:00:08]}  Kd4 {[%clk 0:00:26]} 50. Rc1 {[%clk 0:00:08]}  Ke3 {[%clk 0:00:27]} 51. Rcxc2 {[%clk 0:00:08]}  Bxc2 {[%clk 0:00:26]} 52. Rxc2 {[%clk 0:00:08]}  Kxf4 {[%clk 0:00:27]} 53. Rf2+ {[%clk 0:00:08]}  Kg4 {[%clk 0:00:28]} 54. g3 {[%clk 0:00:08]}  f5 {[%clk 0:00:28]} 55. Rf4+ {[%clk 0:00:09]}  Kh5 {[%clk 0:00:29]} 56. Rxf5+ {[%clk 0:00:09]}  Kg4 {[%clk 0:00:30]} 57. Rg5+ {[%clk 0:00:09]}  Kf3 {[%clk 0:00:30]} 58. h5 {[%clk 0:00:10]}  Ke4 {[%clk 0:00:31]} 59. h6 {[%clk 0:00:10]}  Kd4 {[%clk 0:00:32]} 60. h7 {[%clk 0:00:11]}  Ke4 {[%clk 0:00:33]} 61. h8=Q {[%clk 0:00:11]}  Kf3 {[%clk 0:00:34]} 62. Qf8+ {[%clk 0:00:11]}  Ke4 {[%clk 0:00:34]} 63. Rg7 {[%clk 0:00:11]}  Ke3 {[%clk 0:00:35]} 64. Re7+ {[%clk 0:00:11]}  Kd3 {[%clk 0:00:36]} 65. Qd8+ {[%clk 0:00:12]}  Kc3 {[%clk 0:00:37]} 66. Rc7+ {[%clk 0:00:12]}  Kb2 {[%clk 0:00:37]} 67. Qb8+ {[%clk 0:00:13]}  Ka1 {[%clk 0:00:38]} 68. Ra7# {[%clk 0:00:13]} 1-0


[Site "https://www.chess.com"]

[Event "Titled Tuesday Blitz April 25 Early 2023"]
[White "Malek, Jan"]
[Black "Liu, Casper"]
[WhiteFideId "21864080"]
[BlackFideId "1454153"]
[WhiteElo "2255"]
[BlackElo "2221"]
[Result "0-1"]
[Round "02"]
[TimeControl "180+2"]
[Date "2023.04.25"]
[WhiteClock "0:00:10"]
[BlackClock "0:00:23"]

1. c4 {[%clk 0:03:00]}  Nc6 {[%clk 0:02:50]} 2. d4 {[%clk 0:02:59]}  e5 {[%clk 0:02:50]} 3. d5 {[%clk 0:02:55]}  Nce7 {[%clk 0:02:50]} 4. e4 {[%clk 0:02:54]}  Nf6 {[%clk 0:02:49]} 5. Nc3 {[%clk 0:02:54]}  Ng6 {[%clk 0:02:49]} 6. Bd3 {[%clk 0:02:49]}  Bb4 {[%clk 0:02:49]} 7. Ne2 {[%clk 0:02:49]}  O-O {[%clk 0:02:48]} 8. a3 {[%clk 0:02:48]}  Bxc3+ {[%clk 0:02:48]} 9. Nxc3 {[%clk 0:02:49]}  d6 {[%clk 0:02:48]} 10. Be3 {[%clk 0:02:42]}  Ng4 {[%clk 0:02:31]} 11. Bd2 {[%clk 0:02:41]}  Qh4 {[%clk 0:02:24]} 12. Qf3 {[%clk 0:02:33]}  Nxh2 {[%clk 0:02:16]} 13. Qg3 {[%clk 0:01:48]}  Nf3+ {[%clk 0:02:14]} 14. Ke2 {[%clk 0:01:33]}  Nd4+ {[%clk 0:02:12]} 15. Ke3 {[%clk 0:01:28]}  Qe7 {[%clk 0:01:30]} 16. Qh2 {[%clk 0:00:10]}  Qg5+ {[%clk 0:01:28]} 17. f4 {[%clk 0:00:11]}  exf4+ {[%clk 0:01:23]} 18. Kf2 {[%clk 0:00:10]}  h6 {[%clk 0:01:17]} 19. Ne2 {[%clk 0:00:09]}  Nb3 {[%clk 0:01:15]} 20. Bxf4 {[%clk 0:00:03]}  Nxf4 {[%clk 0:01:13]} 21. Qxf4 {[%clk 0:00:04]}  Qxf4+ {[%clk 0:01:12]} 22. Nxf4 {[%clk 0:00:05]}  Nxa1 {[%clk 0:01:12]} 23. Rxa1 {[%clk 0:00:05]}  f5 {[%clk 0:01:12]} 24. exf5 {[%clk 0:00:03]}  Bxf5 {[%clk 0:01:12]} 25. Bxf5 {[%clk 0:00:04]}  Rxf5 {[%clk 0:01:13]} 26. Kg3 {[%clk 0:00:05]}  Re8 {[%clk 0:01:12]} 27. Ne6 {[%clk 0:00:05]}  c6 {[%clk 0:01:11]} 28. Rd1 {[%clk 0:00:06]}  cxd5 {[%clk 0:01:08]} 29. cxd5 {[%clk 0:00:07]}  Rc8 {[%clk 0:01:08]} 30. Rd2 {[%clk 0:00:06]}  Rc4 {[%clk 0:01:07]} 31. Kh2 {[%clk 0:00:07]}  Rh4+ {[%clk 0:01:06]} 32. Kg1 {[%clk 0:00:07]}  Rhh5 {[%clk 0:01:07]} 33. Rc2 {[%clk 0:00:06]}  Rxd5 {[%clk 0:01:05]} 34. Rc7 {[%clk 0:00:07]}  Rd1+ {[%clk 0:01:03]} 35. Kf2 {[%clk 0:00:07]}  Rd2+ {[%clk 0:01:01]} 36. Kg1 {[%clk 0:00:06]}  Re5 {[%clk 0:00:59]} 37. Rxg7+ {[%clk 0:00:03]}  Kh8 {[%clk 0:00:57]} 38. Rg6 {[%clk 0:00:04]}  Re1+ {[%clk 0:00:47]} 39. Kh2 {[%clk 0:00:04]}  Ree2 {[%clk 0:00:48]} 40. Nf4 {[%clk 0:00:03]}  Rf2 {[%clk 0:00:46]} 41. Nh5 {[%clk 0:00:02]}  Rxb2 {[%clk 0:00:43]} 42. Nf6 {[%clk 0:00:01]}  Rxf6 {[%clk 0:00:41]} 43. Rxf6 {[%clk 0:00:02]}  Rb3 {[%clk 0:00:31]} 44. Rxd6 {[%clk 0:00:02]}  Rxa3 {[%clk 0:00:31]} 45. Rd8+ {[%clk 0:00:03]}  Kg7 {[%clk 0:00:32]} 46. Rd7+ {[%clk 0:00:03]}  Kg6 {[%clk 0:00:32]} 47. Rxb7 {[%clk 0:00:03]}  a5 {[%clk 0:00:33]} 48. Ra7 {[%clk 0:00:03]}  a4 {[%clk 0:00:33]} 49. g3 {[%clk 0:00:03]}  Ra1 {[%clk 0:00:34]} 50. Kh3 {[%clk 0:00:04]}  a3 {[%clk 0:00:34]} 51. Kg4 {[%clk 0:00:04]}  h5+ {[%clk 0:00:34]} 52. Kh3 {[%clk 0:00:04]}  a2 {[%clk 0:00:33]} 53. Kg2 {[%clk 0:00:05]}  Kf5 {[%clk 0:00:31]} 54. Ra4 {[%clk 0:00:05]}  Ke5 {[%clk 0:00:30]} 55. Ra5+ {[%clk 0:00:05]}  Kd4 {[%clk 0:00:30]} 56. Ra8 {[%clk 0:00:06]}  Kc3 {[%clk 0:00:30]} 57. Rc8+ {[%clk 0:00:06]}  Kb4 {[%clk 0:00:30]} 58. Rb8+ {[%clk 0:00:06]}  Ka5 {[%clk 0:00:31]} 59. Ra8+ {[%clk 0:00:07]}  Kb6 {[%clk 0:00:32]} 60. Ra3 {[%clk 0:00:06]}  Kb5 {[%clk 0:00:31]} 61. Ra8 {[%clk 0:00:07]}  Kc4 {[%clk 0:00:29]} 62. Rc8+ {[%clk 0:00:07]}  Kd5 {[%clk 0:00:30]} 63. Rd8+ {[%clk 0:00:07]}  Ke6 {[%clk 0:00:30]} 64. Re8+ {[%clk 0:00:07]}  Kf5 {[%clk 0:00:30]} 65. Ra8 {[%clk 0:00:08]}  Ke4 {[%clk 0:00:30]} 66. Re8+ {[%clk 0:00:08]}  Kd3 {[%clk 0:00:31]} 67. Rc8 {[%clk 0:00:08]}  Rd1 {[%clk 0:00:17]} 68. Rd8+ {[%clk 0:00:06]}  Kc2 {[%clk 0:00:18]} 69. Rc8+ {[%clk 0:00:06]}  Kb3 {[%clk 0:00:18]} 70. Rb8+ {[%clk 0:00:06]}  Kc4 {[%clk 0:00:18]} 71. Rc8+ {[%clk 0:00:06]}  Kb5 {[%clk 0:00:18]} 72. Rb8+ {[%clk 0:00:07]}  Kc6 {[%clk 0:00:19]} 73. Ra8 {[%clk 0:00:05]}  a1=Q {[%clk 0:00:19]} 74. Rxa1 {[%clk 0:00:05]}  Rxa1 {[%clk 0:00:20]} 75. Kh3 {[%clk 0:00:05]}  Ra5 {[%clk 0:00:21]} 76. Kh4 {[%clk 0:00:06]}  Kd6 {[%clk 0:00:20]} 77. Kh3 {[%clk 0:00:06]}  Ke6 {[%clk 0:00:21]} 78. Kg2 {[%clk 0:00:07]}  Kf6 {[%clk 0:00:21]} 79. Kf3 {[%clk 0:00:08]}  Kg5 {[%clk 0:00:22]} 80. Kg2 {[%clk 0:00:09]}  Ra3 {[%clk 0:00:22]} 81. Kh3 {[%clk 0:00:10]}  Rb3 {[%clk 0:00:23]} 82. Kh2 {[%clk 0:00:10]}  Kg4 {[%clk 0:00:23]} 83. Kh1 {[%clk 0:00:10]}  Kxg3 {[%clk 0:00:23]} 0-1


[Site "https://www.chess.com"]